fUST/lending_fUST_20241119
["ID","MTS","AMOUNT","RATE_DAILY","PERIOD"]
[342514477,1731948643083,-151.0,0.00021917,2]
[342514478,1731948643092,-184.249525,0.00021917,2]
[342514479,1731948643101,-151.0,0.00021917,2]
[342514480,1731948643111,-500.0,0.00021917,2]
[342514481,1731948643120,-500.0,0.00021917,2]
[342514482,1731948643130,-500.0,0.00021917,2]
[342514483,1731948643139,-500.0,0.00021917,2]
[342514484,1731948643148,-500.0,0.00021917,2]
[342514485,1731948643158,-500.0,0.00021917,2]
[342514486,1731948643167,-500.0,0.00021917,2]
[342514487,1731948643177,-500.0,0.00021917,2]
[342514488,1731948643186,-278.58908859,0.00021917,2]
[342514489,1731948643196,-1000.0,0.00021917,5]
[342514490,1731948643206,-1000.0,0.00021917,5]
[342514491,1731948643215,-861.64020205,0.00021917,5]
[342514492,1731948643224,-200.0,0.00021917,3]
[342514493,1731948643233,-500.0,0.00021917,2]
[342514494,1731948643243,-500.0,0.00021917,2]
[342514495,1731948643254,-500.0,0.00021917,2]
[342514497,1731948643265,-500.0,0.00021917,2]
[342514498,1731948643274,-500.0,0.00021917,2]
[342514499,1731948643283,-500.0,0.00021917,2]
[342514500,1731948643293,-617.93744341,0.00021917,2]
[342514501,1731948643303,-12186.06,0.00021917,2]
[342514504,1731948643315,-12186.06,0.00021917,2]
[342514505,1731948643325,-12186.06,0.00021917,2]
[342514506,1731948643334,-12186.06,0.00021917,2]
[342514507,1731948643343,-12186.06,0.00021917,2]
[342514509,1731948643353,-12186.06,0.00021917,2]
[342514511,1731948643362,-12186.06,0.00021917,2]
[342514514,1731948643372,-12186.06,0.00021917,2]
[342514518,1731948643382,-12186.06,0.00021917,2]
[342514521,1731948643391,-12186.06,0.00021917,2]
[342514524,1731948643401,-12186.06,0.00021917,2]
[342514527,1731948643411,-12186.06,0.00021917,2]
[342514530,1731948643421,-12186.06,0.00021917,2]
[342514532,1731948643434,-12186.06,0.00021917,2]
[342514534,1731948643443,-12186.06,0.00021917,2]
[342514536,1731948643453,-12186.06,0.00021917,2]
[342514538,1731948643462,-12186.06,0.00021917,2]
[342514540,1731948643473,-12186.06,0.00021917,2]
[342514542,1731948643482,-12145.74244355,0.00021917,2]
[342514553,1731948643818,-430.74833264,0.00019973,2]
[342514554,1731948643827,-6277.57953878,0.0002,2]
[342514555,1731948643839,-738.04546122,0.0002,2]
[342514556,1731948643848,-40.31755645,0.00021917,2]
[342514557,1731948643858,-734.66794982,0.00021917,2]
[342514593,1731948646746,-11451.39205018,0.00021917,2]
[342514594,1731948646757,-5633.55350903,0.00021917,2]
[342514595,1731948646769,-696.61141825,0.00021917,2]
[342514596,1731948646783,-5855.89507272,0.00021917,2]
[342514597,1731948646793,-3039.52110165,0.00021917,2]
[342514598,1731948646805,-8997.3293,0.00021917,2]
[342514599,1731948646871,-149.20959835,0.00021917,2]
[342514600,1731948646882,-12186.06,0.00021917,2]
[342514601,1731948646892,-12186.26781616,0.00021917,2]
[342514602,1731948646901,-152.51043122,0.0002192,7]
[342514603,1731948646911,-152.51043122,0.0002192,7]
[342514604,1731948646920,-152.51043122,0.0002192,7]
[342514605,1731948646930,-152.51043122,0.0002192,7]
[342514606,1731948646939,-152.51043122,0.0002192,7]
[342514607,1731948646949,-152.51043122,0.0002192,7]
[342514608,1731948646958,-152.51043122,0.0002192,7]
[342514609,1731948646968,-152.51043122,0.0002192,7]
[342514610,1731948646977,-152.51,0.0002192,7]
[342514611,1731948646987,-158.37621703,0.0002192,7]
[342514612,1731948646996,-158.37621703,0.0002192,7]
[342514613,1731948647005,-158.37621703,0.0002192,7]
[342514614,1731948647015,-158.37621703,0.0002192,7]
[342514615,1731948647024,-158.37621703,0.0002192,7]
[342514616,1731948647035,-158.37621703,0.0002192,7]
[342514617,1731948647044,-158.37621703,0.0002192,7]
[342514618,1731948647054,-158.37621703,0.0002192,7]
[342514619,1731948647063,-158.37621703,0.0002192,7]
[342514620,1731948647076,-158.37621703,0.0002192,7]
[342514621,1731948647086,-158.37621703,0.0002192,7]
[342514622,1731948647095,-158.37621703,0.0002192,7]
[342514623,1731948647105,-158.37,0.0002192,7]
[342514624,1731948647114,-500.0,0.00021971,2]
[342514625,1731948647123,-641.05733028,0.00021973,2]
[342514626,1731948647132,-6730.54759552,0.00022,2]
[342514627,1731948647141,-2945.79774114,0.00022,2]
[342514628,1731948647151,-4000.0,0.00022,7]
[342514629,1731948647160,-350.0,0.00022,2]
[342514630,1731948647169,-343.76,0.00022,2]
[342514631,1731948647178,-81848.06919479,0.00022,30]
[342514702,1731949831938,-355.5,0.00014244,2]
[342514704,1731949831950,-144.5,0.00014244,2]
[342514705,1731949831962,-500.0,0.00014244,2]
[342514707,1731949831972,-500.0,0.00014244,2]
[342514709,1731949831982,-211.97398315,0.00014244,2]
[342514711,1731949831991,-170.75039696,0.00014898,2]
[342514713,1731949832003,-1926.23724234,0.00014898,2]
[342514716,1731949832013,-883.9475483,0.00014899,2]
[342514718,1731949832023,-300.0,0.00015374,2]
[342514720,1731949832032,-300.0,0.00015375,2]
[342514722,1731949832042,-643.2768318,0.00015547,2]
[342514723,1731949832051,-250.0,0.00015574,2]
[342514724,1731949832061,-500.0,0.000156,2]
[342514725,1731949832070,-500.0,0.000158,2]
[342514726,1731949832080,-500.0,0.000158,2]
[342514727,1731949832089,-1818.375,0.0001594,2]
[342514728,1731949832099,-503.186,0.0001594,2]
[342514729,1731949832108,-500.0,0.00016033,2]
[342514730,1731949832117,-500.0,0.00016033,2]
[342514732,1731949832126,-500.0,0.00016033,2]
[342514733,1731949832136,-500.36499101,0.00016033,2]
[342514734,1731949832145,-500.0,0.00016063,2]
[342514735,1731949832154,-392.66996445,0.00016063,2]
[342514736,1731949832164,-500.0,0.00016063,2]
[342514737,1731949832175,-379.09245987,0.00016063,2]
[342514738,1731949832184,-500.0,0.00016063,2]
[342514739,1731949832195,-500.42337482,0.00016063,2]
[342514740,1731949832204,-500.0,0.00016063,2]
[342514741,1731949832215,-379.77504367,0.00016063,2]
[342514742,1731949832225,-12277.7239992,0.00016064,2]
[342514743,1731949832234,-733.78865183,0.00016237,2]
[342514744,1731949832243,-554.18498486,0.00016335,2]
[342514745,1731949832252,-22030.781321,0.00016336,2]
[342514746,1731949832263,-500.0,0.00016337,2]
[342514747,1731949832273,-199.25,0.00016337,2]
[342514748,1731949832282,-500.0,0.00016337,2]
[342514749,1731949832291,-368.22,0.000166,2]
[342514750,1731949832300,-500.0,0.00016611,2]
[342514751,1731949832310,-500.0,0.00016611,2]
[342514752,1731949832319,-500.0,0.00016885,2]
[342514753,1731949832329,-500.0,0.00016885,2]
[342514754,1731949832338,-500.0,0.00017159,2]
[342514755,1731949832349,-435.73122061,0.00017159,2]
[342514756,1731949832359,-500.0,0.00017433,2]
[342514757,1731949832368,-500.0,0.00017707,2]
[342514758,1731949832378,-733.78865178,0.00017905,2]
[342514759,1731949832387,-500.0,0.00017981,2]
[342514760,1731949832397,-1096.06542644,0.00017982,2]
[342514761,1731949832406,-383.28416338,0.00018164,2]
[342514762,1731949832416,-500.0,0.00018255,2]
[342514763,1731949832426,-486.44024906,0.00018529,2]
[342514764,1731949832435,-221.471,0.00018746,2]
[342514765,1731949832445,-163.378261,0.00019178,2]
[342514766,1731949832455,-733.78865178,0.00019574,2]
[342514767,1731949832471,-7015.625,0.0002,2]
[342514768,1731949832481,-241.8470915,0.00020241,2]
[342514769,1731949832491,-5000.0,0.00020471,2]
[342514770,1731949832500,-241.84709146,0.00020656,2]
[342514771,1731949832510,-241.84709146,0.00021071,2]
[342514772,1731949832519,-733.78865178,0.00021242,2]
[342514773,1731949832529,-563.77258191,0.00021284,2]
[342514774,1731949832539,-241.84709146,0.00021485,2]
[342514775,1731949832548,-160.0,0.00021596,3]
[342514776,1731949832558,-282.1111075,0.00021781,2]
[342514777,1731949832567,-330.0,0.00021817,2]
[342514778,1731949832578,-241.84709146,0.000219,2]
[342514779,1731949832587,-836.23441185,0.000219,2]
[342514780,1731949832597,-1000.0,0.000219,2]
[342514781,1731949832607,-180.14263797,0.00021956,2]
[342514782,1731949832616,-606.275382,0.00021973,2]
[342514783,1731949832626,-500.02318707,0.00021973,2]
[342514784,1731949832635,-500.0,0.00021973,2]
[342514785,1731949832646,-500.0,0.00021973,2]
[342514786,1731949832656,-500.0,0.00021973,2]
[342514787,1731949832665,-500.0,0.00021973,2]
[342514788,1731949832674,-500.0,0.00021973,2]
[342514789,1731949832684,-150.01,0.00021999,2]
[342514790,1731949832693,-3011.51330217,0.00021999,2]
[342514791,1731949832703,-275.11793411,0.00021999,3]
[342514792,1731949832714,-199.53880933,0.00021999,2]
[342514793,1731949832725,-302.31012244,0.00021999,2]
[342514794,1731949832734,-5790.80238765,0.00022,2]
[342514795,1731949832744,-89306.02646357,0.00022,30]
[342514830,1731949838082,-9057.7,0.00022,30]
[342514840,1731949838196,-2345.10666288,0.00022,30]
[342514845,1731949841345,-256743.05971512,0.00022,30]
[342514846,1731949841402,-670.43585308,0.00022,30]
[342514847,1731949841414,-167355.14515785,0.00022,30]
[342514848,1731949841463,-1709.75456417,0.00022,30]
[342514849,1731949841474,-2656.04889451,0.00022,30]
[342514903,1731949842862,-500.0,0.00016063,2]
[342514905,1731949842872,-6247.68076362,0.00022,30]
[342514907,1731949842882,-200.0,0.00022,2]
[342514909,1731949842892,-151.0,0.00022,7]
[342514911,1731949842901,-151.0,0.00022,7]
[342514913,1731949842910,-160.0,0.00022295,4]
[342514915,1731949842920,-5000.0,0.00022302,2]
[342514917,1731949842930,-836.23441178,0.00022568,2]
[342514919,1731949842939,-130.66069746,0.00022693,15]
[342514921,1731949842951,-1251.33930254,0.00022693,15]
[342514922,1731949842964,-733.78865178,0.0002291,2]
[342514923,1731949842974,-160.0,0.00022995,5]
[342514926,1731949842983,-161.14084017,0.00022995,5]
[342514929,1731949842993,-385.81,0.00023,2]
[342514932,1731949843002,-2085.16629335,0.00023,15]
[342515052,1731949846033,-628.64172936,0.00016063,2]
[342515055,1731949846044,-7015.625,0.0002,2]
[342515057,1731949846055,-264.31263164,0.00021999,2]
[342515059,1731949846065,-2914.83370665,0.00023,15]
[342515061,1731949846074,-150.0,0.00023,5]
[342515063,1731949846083,-500.0,0.00023012,2]
[342515065,1731949846094,-500.0,0.00023012,2]
[342515067,1731949846103,-500.0,0.00023012,2]
[342515069,1731949846113,-500.0,0.00023012,2]
[342515071,1731949846123,-500.0,0.00023012,2]
[342515073,1731949846132,-500.0,0.00023012,2]
[342515075,1731949846141,-500.0,0.00023012,2]
[342515077,1731949846151,-861.81906223,0.00023012,2]
[342515079,1731949846160,-500.0,0.00023012,2]
[342515081,1731949846170,-500.0,0.00023012,2]
[342515083,1731949846179,-500.0,0.00023012,2]
[342515085,1731949846188,-500.0,0.00023012,2]
[342515087,1731949846197,-500.0,0.00023012,2]
[342515089,1731949846206,-500.0,0.00023012,2]
[342515091,1731949846217,-500.0,0.00023012,2]
[342515093,1731949846227,-500.0,0.00023012,2]
[342515095,1731949846236,-716.72873002,0.00023012,2]
[342515097,1731949846245,-500.0,0.00023012,2]
[342515099,1731949846254,-701.93120077,0.00023012,2]
[342515101,1731949846263,-590.59114136,0.00023012,2]
[342515103,1731949846272,-500.0,0.00023012,2]
[342515105,1731949846282,-500.0,0.00023012,2]
[342515107,1731949846291,-500.0,0.00023012,2]
[342515109,1731949846300,-500.0,0.00023012,2]
[342515111,1731949846309,-500.0,0.00023012,2]
[342515113,1731949846320,-500.0,0.00023012,2]
[342515115,1731949846329,-738.97052961,0.00023012,2]
[342515117,1731949846339,-800.0,0.00023012,2]
[342515119,1731949846349,-800.0,0.00023012,2]
[342515121,1731949846358,-800.0,0.00023012,2]
[342515123,1731949846368,-900.0,0.00023012,2]
[342515125,1731949846377,-800.0,0.00023012,2]
[342515127,1731949846386,-900.0,0.00023012,2]
[342515129,1731949846396,-800.0,0.00023012,2]
[342515131,1731949846406,-900.0,0.00023012,2]
[342515133,1731949846415,-800.0,0.00023012,2]
[342515135,1731949846424,-800.0,0.00023012,2]
[342515137,1731949846433,-900.0,0.00023012,2]
[342515139,1731949846443,-800.0,0.00023012,2]
[342515141,1731949846453,-900.0,0.00023012,2]
[342515143,1731949846464,-900.0,0.00023012,2]
[342515145,1731949846474,-900.0,0.00023012,2]
[342515147,1731949846483,-800.0,0.00023012,2]
[342515149,1731949846492,-900.0,0.00023012,2]
[342515151,1731949846501,-900.0,0.00023012,2]
[342515153,1731949846510,-900.0,0.00023012,2]
[342515155,1731949846519,-900.0,0.00023012,2]
[342515157,1731949846529,-800.0,0.00023012,2]
[342515159,1731949846538,-900.0,0.00023012,2]
[342515161,1731949846547,-800.0,0.00023012,2]
[342515163,1731949846559,-900.0,0.00023012,2]
[342515165,1731949846569,-800.0,0.00023012,2]
[342515166,1731949846578,-919.37031135,0.00023012,2]
[342515169,1731949846588,-1586.86395299,0.00023012,2]
[342515171,1731949846598,-836.23441178,0.00023237,2]
[342515173,1731949846607,-9434.67138717,0.00023268,2]
[342515175,1731949846617,-500.0,0.00023287,2]
[342515177,1731949846626,-259.9935188,0.00023288,2]
[342515179,1731949846637,-1073.0,0.00023328,7]
[342515181,1731949846647,-1323.7,0.00023683,15]
[342515183,1731949846656,-836.23441178,0.00023905,2]
[342515185,1731949846665,-3850.0,0.00024,10]
[342515187,1731949846674,-500.0,0.00024171,2]
[342515189,1731949846684,-500.0,0.00024171,2]
[342515191,1731949846693,-339.24548805,0.000244,2]
[342515193,1731949846702,-836.23441178,0.00024573,2]
[342515195,1731949846714,-733.78865178,0.00024578,2]
[342515197,1731949846725,-200.0,0.00024657,2]
[342515199,1731949846735,-200.0,0.00024657,2]
[342515201,1731949846745,-200.0,0.00024657,2]
[342515203,1731949846755,-200.0,0.00024657,2]
[342515205,1731949846767,-200.0,0.00024657,2]
[342515207,1731949846778,-200.0,0.00024657,2]
[342515209,1731949846788,-200.0,0.00024657,2]
[342515211,1731949846797,-200.0,0.00024657,2]
[342515213,1731949846807,-200.0,0.00024657,2]
[342515215,1731949846817,-200.0,0.00024657,2]
[342515217,1731949846826,-200.0,0.00024657,2]
[342515219,1731949846836,-200.0,0.00024657,2]
[342515221,1731949846846,-200.0,0.00024657,2]
[342515223,1731949846857,-200.0,0.00024657,2]
[342515225,1731949846866,-200.0,0.00024657,2]
[342515227,1731949846876,-272.30495029,0.00024657,2]
[342515229,1731949846885,-500.0,0.00024657,2]
[342515231,1731949846895,-500.0,0.00024657,2]
[342515233,1731949846904,-500.0,0.00024657,2]
[342515236,1731949846914,-500.0,0.00024657,2]
[342515238,1731949846926,-500.0,0.00024657,2]
[342515240,1731949846937,-500.0,0.00024657,2]
[342515242,1731949846946,-238.8547169,0.00024657,2]
[342515244,1731949846956,-500.0,0.00024657,2]
[342515246,1731949846966,-500.0,0.00024657,2]
[342515248,1731949846977,-500.0,0.00024657,2]
[342515250,1731949846986,-500.0,0.00024657,2]
[342515252,1731949846996,-500.0,0.00024657,2]
[342515254,1731949847005,-500.0,0.00024657,2]
[342515256,1731949847015,-500.0,0.00024657,2]
[342515258,1731949847025,-500.0,0.00024657,2]
[342515260,1731949847034,-337.25086874,0.00024657,2]
[342515262,1731949847043,-500.0,0.00024657,3]
[342515264,1731949847053,-150.0,0.00024658,2]
[342515266,1731949847063,-161.96708079,0.00024658,2]
[342515268,1731949847072,-951.0043015,0.00024658,4]
[342515270,1731949847082,-11659.15,0.000247,14]
[342515272,1731949847091,-790.89916752,0.000247,14]
[342515274,1731949847104,-21611.68083248,0.000247,14]
[342515276,1731949847113,-183.549,0.0002475,60]
[342515278,1731949847123,-59421.6410125,0.000248,2]
[342515280,1731949847132,-1104.67,0.000248,7]
[342515282,1731949847141,-152.43,0.000249,31]
[342515284,1731949847151,-152.43,0.000249,31]
[342515287,1731949847160,-152.43,0.000249,31]
[342515289,1731949847169,-152.43,0.000249,31]
[342515291,1731949847179,-152.43,0.000249,31]
[342515293,1731949847188,-152.43,0.000249,31]
[342515294,1731949847198,-152.43,0.000249,31]
[342515296,1731949847207,-152.43,0.000249,31]
[342515298,1731949847218,-152.43,0.000249,31]
[342515300,1731949847228,-152.43,0.000249,31]
[342515302,1731949847237,-152.43,0.000249,31]
[342515305,1731949847247,-668.09,0.00024958,2]
[342515307,1731949847256,-668.09,0.00024958,2]
[342515309,1731949847266,-668.09,0.00024958,2]
[342515311,1731949847276,-668.09,0.00024958,2]
[342515313,1731949847285,-668.09,0.00024958,2]
[342515315,1731949847295,-668.09,0.00024958,2]
[342515317,1731949847304,-668.09,0.00024958,2]
[342515319,1731949847314,-668.09,0.00024958,2]
[342515321,1731949847323,-668.09,0.00024958,2]
[342515323,1731949847332,-668.09,0.00024958,2]
[342515325,1731949847342,-668.09,0.00024958,2]
[342515326,1731949847352,-668.09,0.00024958,2]
[342515329,1731949847362,-668.09,0.00024958,2]
[342515331,1731949847372,-668.09,0.00024958,2]
[342515333,1731949847382,-668.09,0.00024958,2]
[342515335,1731949847392,-668.09,0.00024958,2]
[342515337,1731949847402,-668.09,0.00024958,2]
[342515339,1731949847411,-668.09,0.00024958,2]
[342515341,1731949847421,-668.09,0.00024958,2]
[342515343,1731949847430,-668.09,0.00024958,2]
[342515345,1731949847440,-668.09,0.00024958,2]
[342515347,1731949847450,-668.09,0.00024958,2]
[342515349,1731949847460,-668.27110757,0.00024958,2]
[342515351,1731949847473,-608.0,0.00025,31]
[342515353,1731949847482,-300.0,0.00025,2]
[342515355,1731949847492,-300.0,0.00025,2]
[342515357,1731949847501,-300.0,0.00025,2]
[342515359,1731949847511,-300.0,0.00025,2]
[342515361,1731949847521,-300.0,0.00025,2]
[342515362,1731949847530,-300.0,0.00025,2]
[342515363,1731949847540,-1870.36646098,0.00025,2]
[342515364,1731949847550,-6491.64204054,0.00025,2]
[342515365,1731949847560,-1000.0,0.00025,25]
[342515366,1731949847570,-300.0,0.00025,2]
[342515367,1731949847580,-271.7,0.00025,2]
[342515368,1731949847590,-5282.0,0.00025,2]
[342515369,1731949847601,-5000.92807837,0.00025,2]
[342515370,1731949847612,-1000.0,0.00025,30]
[342515371,1731949847623,-2446.03972304,0.00025,30]
[342515372,1731949847634,-151.0,0.00025,2]
[342515373,1731949847645,-24107.56225632,0.00025,2]
[342515374,1731949847655,-302.84859387,0.00025,2]
[342515375,1731949847665,-781.360278,0.00025,17]
[342515376,1731949847674,-693.85,0.00025,2]
[342515377,1731949847684,-302.84859387,0.00025,2]
[342515378,1731949847694,-183.561,0.0002518,30]
[342515379,1731949847704,-1073.0,0.00025194,14]
[342515380,1731949847717,-836.23441178,0.00025242,2]
[342515382,1731949847728,-302.84859387,0.0002525,2]
[342515384,1731949847738,-302.84859387,0.0002525,2]
[342515386,1731949847747,-152.43,0.000253,31]
[342515388,1731949847757,-152.43,0.000253,31]
[342515390,1731949847769,-152.43,0.000253,31]
[342515409,1731949847940,-152.43,0.000253,31]
[342515411,1731949847951,-152.43,0.000253,31]
[342515413,1731949847961,-152.43,0.000253,31]
[342515415,1731949847974,-152.43,0.000253,31]
[342515418,1731949847985,-152.43,0.000253,31]
[342515420,1731949847995,-6498.98602051,0.0002542,2]
[342515422,1731949848004,-151.0,0.0002542,7]
[342515424,1731949848014,-151.0,0.0002542,7]
[342515426,1731949848023,-151.0,0.0002542,7]
[342515428,1731949848033,-302.84859387,0.000255,2]
[342515430,1731949848043,-302.84859387,0.000255,2]
[342515432,1731949848052,-1000.0,0.00025541,2]
[342515434,1731949848062,-183.554,0.0002562,30]
[342515436,1731949848071,-152.43,0.000257,31]
[342515438,1731949848080,-152.43,0.000257,31]
[342515440,1731949848090,-152.43,0.000257,31]
[342515442,1731949848100,-152.43,0.000257,31]
[342515444,1731949848109,-152.43,0.000257,31]
[342515446,1731949848118,-152.43,0.000257,31]
[342515448,1731949848128,-152.43,0.000257,31]
[342515450,1731949848137,-152.43,0.000257,31]
[342515452,1731949848147,-302.84859387,0.0002575,2]
[342515454,1731949848157,-302.84859387,0.0002575,2]
[342515456,1731949848166,-151.0,0.00025847,7]
[342515458,1731949848176,-836.23441178,0.0002591,2]
[342515460,1731949848185,-528.71132704,0.00026,2]
[342515462,1731949848195,-300.0,0.00026,2]
[342515464,1731949848205,-544.80823699,0.00026,30]
[342515466,1731949848216,-791.88915293,0.00026,7]
[342515468,1731949848226,-11659.15,0.00026,14]
[342515470,1731949848235,-22402.58,0.00026,14]
[342515472,1731949848246,-302.84859387,0.00026,2]
[342515474,1731949848256,-302.84859387,0.00026,2]
[342515476,1731949848265,-500.0,0.00026027,2]
[342515478,1731949848275,-150.08,0.00026027,2]
[342515480,1731949848284,-183.476,0.0002605,7]
[342515482,1731949848294,-5640.88665918,0.0002611,2]
[342515484,1731949848305,-152.43,0.000262,31]
[342515486,1731949848315,-152.43,0.000262,31]
[342515488,1731949848325,-152.43,0.000262,31]
[342515490,1731949848335,-152.43,0.000262,31]
[342515492,1731949848346,-152.43,0.000262,31]
[342515494,1731949848359,-152.43,0.000262,31]
[342515496,1731949848369,-152.43,0.000262,31]
[342515498,1731949848379,-152.43,0.000262,31]
[342515501,1731949848389,-733.78865178,0.00026247,2]
[342515502,1731949848399,-454.27289081,0.0002625,4]
[342515505,1731949848408,-454.27289081,0.0002625,4]
[342515506,1731949848418,-500.0,0.00026301,2]
[342515509,1731949848427,-660.0,0.00026384,2]
[342515510,1731949848437,-7458.94652043,0.0002649,2]
[342515513,1731949848447,-183.552,0.0002649,60]
[342515514,1731949848457,-454.27289081,0.000265,4]
[342515516,1731949848469,-454.27289081,0.000265,4]
[342515518,1731949848479,-500.0,0.00026575,2]
[342515520,1731949848488,-836.23441178,0.00026578,2]
[342515522,1731949848498,-152.43,0.000266,31]
[342515524,1731949848508,-152.43,0.000266,31]
[342515526,1731949848518,-152.43,0.000266,31]
[342515528,1731949848528,-152.43,0.000266,31]
[342515530,1731949848537,-454.27289081,0.0002675,4]
[342515532,1731949848547,-454.27289081,0.0002675,4]
[342515535,1731949848560,-389.58479472,0.00026808,2]
[342515537,1731949848570,-500.0,0.00026849,2]
[342515538,1731949848579,-183.551,0.0002692,30]
[342515541,1731949848589,-3000.0,0.00027,7]
[342515543,1731949848599,-1000.0,0.00027,27]
[342515545,1731949848608,-15343.1594715,0.00027,10]
[342515547,1731949848618,-2495.87277406,0.00027,2]
[342515549,1731949848631,-4000.0,0.00027,7]
[342515550,1731949848640,-33192.64559322,0.00027,10]
[342515553,1731949848651,-262.0,0.00027,60]
[342515555,1731949848660,-351.51120457,0.00027,60]
[342515557,1731949848670,-50000.0,0.00027,60]
[342515559,1731949848679,-30343.76533421,0.00027,120]
[342515566,1731949848748,-9337.47575557,0.00027,120]
[342515569,1731949848760,-5542.75891022,0.00027,120]
[342515571,1731949848774,-22402.58,0.00027,14]
[342515573,1731949848783,-151.0,0.00027,7]
[342515575,1731949848793,-151.0,0.00027,7]
[342515577,1731949848803,-151.0,0.00027,7]
[342515579,1731949848813,-151.0,0.00027,7]
[342515581,1731949848822,-151.0,0.00027,7]
[342515583,1731949848832,-226.418533,0.00027,7]
[342515585,1731949848843,-151.0,0.00027,7]
[342515587,1731949848853,-500.0,0.00027,2]
[342515589,1731949848863,-500.0,0.00027,2]
[342515591,1731949848874,-500.0,0.00027,2]
[342515593,1731949848883,-276.22445223,0.00027,2]
[342515595,1731949848892,-151.0,0.00027,7]
[342515597,1731949848902,-179.030276,0.00027,7]
[342515599,1731949848912,-151.0,0.00027,7]
[342515601,1731949848921,-151.0,0.00027,7]
[342515603,1731949848930,-151.0,0.00027,7]
[342515605,1731949848940,-454.27289081,0.00027,4]
[342515607,1731949848950,-151.0,0.00027,7]
[342515609,1731949848959,-693.85,0.00027,2]
[342515611,1731949848971,-454.27289081,0.00027,4]
[342515613,1731949848980,-500.0,0.00027123,2]
[342515615,1731949848994,-151.0,0.00027123,7]
[342515617,1731949849003,-151.0,0.00027123,7]
[342515619,1731949849013,-151.0,0.00027123,7]
[342515621,1731949849023,-151.0,0.00027123,7]
[342515623,1731949849033,-151.0,0.00027123,7]
[342515625,1731949849043,-11659.15,0.000272,14]
[342515627,1731949849052,-157.683884,0.000272,7]
[342515629,1731949849062,-151.0,0.000272,7]
[342515631,1731949849072,-1073.0,0.0002721,30]
[342515633,1731949849083,-151.0,0.0002721,7]
[342515636,1731949849092,-151.0,0.0002721,7]
[342515638,1731949849102,-836.23441178,0.00027247,2]
[342515640,1731949849112,-454.27289081,0.0002725,4]
[342515642,1731949849121,-454.27289081,0.0002725,4]
[342515644,1731949849131,-6000.0,0.00027297,2]
[342515646,1731949849141,-183.57,0.0002735,30]
[342515648,1731949849150,-500.0,0.00027397,2]
[342515650,1731949849160,-151.0,0.00027397,7]
[342515652,1731949849169,-211.74597504,0.00027397,2]
[342515654,1731949849179,-507.86867005,0.00027397,2]
[342515656,1731949849189,-1000.0,0.00027397,2]
[342515658,1731949849198,-168.80680598,0.00027397,2]
[342515660,1731949849208,-741.0,0.00027397,2]
[342515662,1731949849221,-3782.45,0.00027397,90]
[342515664,1731949849233,-151.0,0.00027397,7]
[342515666,1731949849243,-44321.98570341,0.000275,2]
[342515668,1731949849252,-500.0,0.00027671,2]
[342515670,1731949849262,-741.0,0.00027671,2]
[342515672,1731949849271,-183.568,0.0002779,15]
[342515674,1731949849280,-1126.60842299,0.000279,10]
[342515676,1731949849290,-836.23441178,0.00027915,2]
[342515678,1731949849299,-733.78865178,0.00027915,2]